fUST/lending_fUST_20241110
["ID","MTS","AMOUNT","RATE_DAILY","PERIOD"]
[341788675,1731231039408,-880.5,0.00030136,2]
[341788677,1731231039417,-549.789739,0.00030136,2]
[341788679,1731231039427,-500.0,0.00030136,2]
[341788681,1731231039436,-590.69378979,0.00030136,2]
[341788683,1731231039445,-1747.82,0.00030136,2]
[341788684,1731231039455,-508.21857971,0.00030136,2]
[341788685,1731231039465,-501.22433543,0.00030136,2]
[341788686,1731231039474,-500.0,0.00030136,2]
[341788687,1731231039483,-500.0,0.00030136,2]
[341788688,1731231039493,-535.99488805,0.00030136,2]
[341788689,1731231039503,-500.0,0.00030136,2]
[341788690,1731231039512,-500.0,0.00030136,2]
[341788691,1731231039522,-500.0,0.00030136,2]
[341788692,1731231039531,-500.0,0.00030136,2]
[341788693,1731231039540,-500.0,0.00030136,2]
[341788694,1731231039549,-500.0,0.00030136,2]
[341788695,1731231039559,-917.8,0.00030136,2]
[341788696,1731231039633,-500.0,0.00030136,2]
[341788697,1731231039643,-13489.69,0.00030136,2]
[341788698,1731231039652,-500.0,0.00030136,2]
[341788699,1731231039661,-500.0,0.00030136,2]
[341788700,1731231039671,-500.0,0.00030136,2]
[341788701,1731231039680,-500.0,0.00030136,2]
[341788702,1731231039689,-500.0,0.00030136,2]
[341788703,1731231039699,-892.528584,0.00030136,7]
[341788704,1731231039709,-892.528584,0.00030136,7]
[341788705,1731231039718,-892.528584,0.00030136,7]
[341788706,1731231039727,-892.528584,0.00030136,7]
[341788707,1731231039736,-892.528584,0.00030136,7]
[341788708,1731231039746,-500.0,0.00030136,2]
[341788709,1731231039755,-500.0,0.00030136,2]
[341788710,1731231039764,-892.528584,0.00030136,7]
[341788711,1731231039773,-500.0,0.00030136,2]
[341788713,1731231039782,-892.528584,0.00030136,7]
[341788714,1731231039791,-892.528584,0.00030136,7]
[341788715,1731231039800,-169.30403693,0.00030136,2]
[341788716,1731231039809,-892.528584,0.00030136,7]
[341788717,1731231039818,-500.0,0.00030136,2]
[341788718,1731231039827,-892.528584,0.00030136,7]
[341788719,1731231039836,-500.0,0.00030136,2]
[341788720,1731231039845,-500.0,0.00030136,2]
[341788721,1731231039854,-892.528584,0.00030136,7]
[341788722,1731231039863,-892.528584,0.00030136,7]
[341788723,1731231039873,-892.528584,0.00030136,7]
[341788725,1731231039882,-500.0,0.00030136,2]
[341788726,1731231039891,-892.528584,0.00030136,7]
[341788727,1731231039900,-892.528584,0.00030136,7]
[341788729,1731231039910,-892.528584,0.00030136,7]
[341788730,1731231039919,-892.528584,0.00030136,7]
[341788731,1731231039929,-500.0,0.00030136,2]
[341788732,1731231039938,-892.528584,0.00030136,7]
[341788733,1731231039947,-500.0,0.00030136,2]
[341788734,1731231039958,-500.0,0.00030136,2]
[341788735,1731231039966,-500.0,0.00030136,2]
[341788736,1731231039976,-681.01,0.00030136,2]
[341788737,1731231039985,-6694.2,0.00030136,2]
[341788738,1731231039994,-500.0,0.00030136,2]
[341788740,1731231040003,-1822.46,0.00030136,2]
[341788742,1731231040012,-500.0,0.00030136,2]
[341788744,1731231040021,-500.0,0.00030136,2]
[341788746,1731231040031,-500.0,0.00030136,2]
[341788747,1731231040040,-500.0,0.00030136,2]
[341788748,1731231040049,-502.54,0.00030136,2]
[341788749,1731231040058,-500.0,0.00030136,2]
[341788750,1731231040067,-500.0,0.00030136,2]
[341788751,1731231040077,-501.78208655,0.00030136,2]
[341788752,1731231040086,-500.0,0.00030136,2]
[341788753,1731231040095,-500.0,0.00030136,2]
[341788754,1731231040105,-462.81616072,0.00030136,2]
[341788755,1731231040113,-500.0,0.00030136,2]
[341788756,1731231040123,-703.87,0.00030136,2]
[341788757,1731231040132,-8860.29,0.00030136,2]
[341788758,1731231040141,-8860.29,0.00030136,2]
[341788759,1731231040150,-500.0,0.00030136,2]
[341788760,1731231040159,-8860.29,0.00030136,2]
[341788761,1731231040169,-8860.29,0.00030136,2]
[341788762,1731231040178,-8860.29,0.00030136,2]
[341788763,1731231040187,-8860.29,0.00030136,2]
[341788764,1731231040196,-8860.29,0.00030136,2]
[341788765,1731231040206,-8860.29,0.00030136,2]
[341788766,1731231040215,-8860.29,0.00030136,2]
[341788767,1731231040224,-6382.83073181,0.00030136,2]
[341788776,1731231040760,-364.39121201,0.00025,2]
[341788777,1731231040770,-2477.45926819,0.00030136,2]
[341788778,1731231040779,-8860.29,0.00030136,2]
[341788779,1731231040788,-620.382047,0.00030136,2]
[341788780,1731231040797,-500.0,0.00030136,2]
[341788781,1731231040807,-8860.29,0.00030136,2]
[341788782,1731231040816,-8860.29,0.00030136,2]
[341788783,1731231040825,-8860.29,0.00030136,2]
[341788784,1731231040834,-8860.29,0.00030136,2]
[341788785,1731231040844,-8860.29,0.00030136,2]
[341788786,1731231040853,-500.0,0.00030136,2]
[341788787,1731231040862,-8860.29,0.00030136,2]
[341788788,1731231040871,-8860.29,0.00030136,2]
[341788789,1731231040882,-8860.29,0.00030136,2]
[341788790,1731231040891,-8860.29,0.00030136,2]
[341788791,1731231040900,-8860.29,0.00030136,2]
[341788792,1731231040910,-8860.29,0.00030136,2]
[341788793,1731231040919,-8860.29,0.00030136,2]
[341788794,1731231040928,-8860.35076403,0.00030136,2]
[341788795,1731231040937,-500.0,0.00030136,2]
[341788796,1731231040946,-180.38531866,0.00030136,2]
[341788797,1731231040958,-188.771636,0.00030136,7]
[341788798,1731231040967,-500.0,0.00030136,2]
[341788799,1731231040976,-500.0,0.00030136,2]
[341788800,1731231040986,-188.771636,0.00030136,7]
[341788801,1731231040995,-188.771636,0.00030136,7]
[341788802,1731231041004,-188.771636,0.00030136,7]
[341788803,1731231041013,-500.0,0.00030136,2]
[341788804,1731231041022,-188.771636,0.00030136,7]
[341788805,1731231041032,-188.771636,0.00030136,7]
[341788806,1731231041041,-188.771636,0.00030136,7]
[341788807,1731231041050,-500.0,0.00030136,2]
[341788808,1731231041059,-502.44953685,0.00030136,2]
[341788809,1731231041069,-188.771636,0.00030136,7]
[341788810,1731231041078,-537.31603049,0.00030136,2]
[341788811,1731231041088,-188.771636,0.00030136,7]
[341788812,1731231041097,-500.0,0.00030136,2]
[341788813,1731231041106,-188.771636,0.00030136,7]
[341788814,1731231041116,-500.0,0.00030136,2]
[341788815,1731231041125,-188.771636,0.00030136,7]
[341788816,1731231041134,-188.771636,0.00030136,7]
[341788817,1731231041144,-188.771636,0.00030136,7]
[341788818,1731231041153,-500.0,0.00030136,2]
[341788819,1731231041162,-188.771636,0.00030136,7]
[341788820,1731231041171,-188.771636,0.00030136,7]
[341788821,1731231041180,-188.771636,0.00030136,7]
[341788822,1731231041189,-500.0,0.00030136,2]
[341788823,1731231041198,-188.771636,0.00030136,7]
[341788824,1731231041210,-188.771636,0.00030136,7]
[341788825,1731231041219,-337.746111,0.00030136,7]
[341788826,1731231041228,-337.746111,0.00030136,7]
[341788827,1731231041237,-337.746111,0.00030136,7]
[341788828,1731231041246,-337.746111,0.00030136,7]
[341788829,1731231041255,-337.746111,0.00030136,7]
[341788830,1731231041264,-537.22409075,0.00030136,2]
[341788831,1731231041273,-500.0,0.00030136,2]
[341788832,1731231041283,-337.746111,0.00030136,7]
[341788833,1731231041292,-337.746111,0.00030136,7]
[341788834,1731231041302,-337.746111,0.00030136,7]
[341788835,1731231041311,-500.0,0.00030136,2]
[341788836,1731231041320,-500.0,0.00030136,2]
[341788837,1731231041334,-337.746111,0.00030136,7]
[341788838,1731231041343,-151.0,0.00030136,7]
[341788839,1731231041352,-500.0,0.00030136,2]
[341788840,1731231041362,-151.0,0.00030136,7]
[341788841,1731231041371,-151.0,0.00030136,7]
[341788842,1731231041380,-151.0,0.00030136,7]
[341788843,1731231041389,-151.0,0.00030136,7]
[341788844,1731231041398,-500.0,0.00030136,2]
[341788845,1731231041407,-2336.0,0.00030136,2]
[341788846,1731231041415,-151.0,0.00030136,7]
[341788847,1731231041425,-754.47,0.00030136,2]
[341788848,1731231041434,-337.746111,0.00030136,7]
[341788849,1731231041442,-151.0,0.00030136,7]
[341788850,1731231041451,-337.746111,0.00030136,7]
[341788851,1731231041462,-151.0,0.00030136,7]
[341788852,1731231041472,-337.746111,0.00030136,7]
[341788853,1731231041481,-151.0,0.00030136,7]
[341788854,1731231041490,-337.746111,0.00030136,7]
[341788855,1731231041500,-337.746111,0.00030136,7]
[341788856,1731231041510,-151.0,0.00030136,7]
[341788857,1731231041519,-501.27055833,0.00030136,2]
[341788858,1731231041528,-151.0,0.00030136,7]
[341788859,1731231041537,-4329.23,0.00030136,2]
[341788860,1731231041546,-337.746111,0.00030136,7]
[341788861,1731231041556,-337.746111,0.00030136,7]
[341788862,1731231041566,-151.0,0.00030136,7]
[341788863,1731231041575,-502.61058034,0.00030136,2]
[341788864,1731231041584,-151.0,0.00030136,7]
[341788865,1731231041594,-337.746111,0.00030136,7]
[341788866,1731231041603,-337.746111,0.00030136,7]
[341788867,1731231041612,-151.0,0.00030136,7]
[341788868,1731231041621,-151.0,0.00030136,7]
[341788869,1731231041630,-500.0,0.00030136,2]
[341788870,1731231041639,-151.0,0.00030136,7]
[341788871,1731231041649,-500.0,0.00030136,2]
[341788872,1731231041658,-248.658302,0.00030136,7]
[341788873,1731231041667,-500.0,0.00030136,2]
[341788874,1731231041678,-3875.22,0.00030136,2]
[341788875,1731231041687,-502.25816379,0.00030136,2]
[341788876,1731231041696,-500.0,0.00030136,2]
[341788877,1731231041705,-100000.0,0.00030136,2]
[341788878,1731231041715,-500.0,0.00030136,2]
[341788879,1731231041724,-19230.79264533,0.00030136,2]
[341788880,1731231041733,-500.0,0.00030136,2]
[341788881,1731231041742,-500.0,0.00030136,2]
[341788882,1731231041751,-500.0,0.00030136,2]
[341788883,1731231041760,-500.0,0.00030136,2]
[341788884,1731231041769,-500.0,0.00030136,2]
[341788885,1731231041778,-415.983393,0.00030136,7]
[341788886,1731231041787,-500.0,0.00030136,2]
[341788887,1731231041855,-415.983393,0.00030136,7]
[341788888,1731231041865,-415.983393,0.00030136,7]
[341788889,1731231041873,-501.61624518,0.00030136,2]
[341788890,1731231041883,-415.983393,0.00030136,7]
[341788891,1731231041892,-415.983393,0.00030136,7]
[341788892,1731231041901,-415.983393,0.00030136,7]
[341788893,1731231041910,-500.0,0.00030136,2]
[341788894,1731231041921,-415.983393,0.00030136,7]
[341788895,1731231041930,-415.983393,0.00030136,7]
[341788896,1731231041939,-1356.25,0.00030136,2]
[341788897,1731231041948,-415.983393,0.00030136,7]
[341788898,1731231041957,-415.983393,0.00030136,7]
[341788899,1731231041967,-415.983393,0.00030136,7]
[341788900,1731231041976,-500.0,0.00030136,2]
[341788901,1731231041986,-415.983393,0.00030136,7]
[341788902,1731231041997,-415.983393,0.00030136,7]
[341788903,1731231042007,-415.983393,0.00030136,7]
[341788904,1731231042016,-609.13,0.00030136,2]
[341788905,1731231042026,-502.49830277,0.00030136,2]
[341788906,1731231042036,-415.983393,0.00030136,7]
[341788907,1731231042046,-503.8799329,0.00030136,2]
[341788908,1731231042055,-415.983393,0.00030136,7]
[341788909,1731231042064,-415.983393,0.00030136,7]
[341788910,1731231042074,-415.983393,0.00030136,7]
[341788911,1731231042083,-500.0,0.00030136,2]
[341788912,1731231042092,-526.58940198,0.00030136,2]
[341788913,1731231042102,-4176.59,0.00030136,120]
[341788914,1731231042111,-503.02742343,0.00030136,2]
[341788915,1731231042120,-500.0,0.00030136,2]
[341788916,1731231042129,-500.0,0.00030136,2]
[341788917,1731231042138,-500.0,0.00030136,2]
[341788918,1731231042147,-1558.94,0.00030136,2]
[341788919,1731231042157,-514.86960411,0.00030136,2]
[341788920,1731231042167,-500.0,0.00030136,2]
[341788921,1731231042176,-500.0,0.00030136,2]
[341788922,1731231042185,-506.32920754,0.00030136,2]
[341788923,1731231042194,-500.0,0.00030136,2]
[341788924,1731231042203,-222.39812171,0.00030136,2]
[341788925,1731231042213,-500.0,0.00030136,2]
[341788926,1731231042223,-500.0,0.00030136,2]
[341788927,1731231042232,-500.0,0.00030136,2]
[341788928,1731231042241,-500.0,0.00030136,2]
[341788929,1731231042250,-500.0,0.00030136,2]
[341788930,1731231042259,-500.0,0.00030136,2]
[341788931,1731231042268,-151.637364,0.00030136,7]
[341788932,1731231042277,-599.64243554,0.00030136,2]
[341788933,1731231042286,-500.0,0.00030136,2]
[341788934,1731231042295,-500.0,0.00030136,2]
[341788935,1731231042305,-613.66,0.00030136,2]
[341788936,1731231042314,-500.0,0.00030136,2]
[341788937,1731231042323,-500.0,0.00030136,2]
[341788938,1731231042332,-500.0,0.00030136,2]
[341788939,1731231042341,-500.0,0.00030136,2]
[341788940,1731231042350,-500.0,0.00030136,2]
[341788941,1731231042359,-500.0,0.00030136,2]
[341788942,1731231042368,-500.0,0.00030136,2]
[341788943,1731231042377,-500.0,0.00030136,2]
[341788944,1731231042387,-500.0,0.00030136,2]
[341788945,1731231042396,-1492.06,0.00030136,2]
[341788946,1731231042405,-151.0,0.00030136,7]
[341788947,1731231042415,-151.0,0.00030136,7]
[341788948,1731231042425,-155.246859,0.00030136,7]
[341788949,1731231042434,-1217.15,0.00030136,2]
[341788950,1731231042444,-4539.75,0.00030136,2]
[341788951,1731231042452,-151.0,0.00030136,7]
[341788952,1731231042462,-154.699475,0.00030136,7]
[341788953,1731231042475,-500.0,0.00030136,2]
[341788954,1731231042484,-500.0,0.00030136,2]
[341788955,1731231042493,-411.80809852,0.00030136,2]
[341788956,1731231042502,-178.9322912,0.00030136,2]
[341788957,1731231042512,-732.83,0.00030136,2]
[341788958,1731231042521,-500.0,0.00030136,2]
[341788959,1731231042530,-641.11,0.00030136,2]
[341788960,1731231042540,-1211.27,0.00030136,2]
[341788961,1731231042550,-500.0,0.00030136,2]
[341788962,1731231042560,-500.0,0.00030136,2]
[341788963,1731231042569,-500.0,0.00030136,2]
[341788964,1731231042579,-500.0,0.00030136,2]
[341788965,1731231042588,-500.0,0.00030136,2]
[341788966,1731231042597,-500.0,0.00030136,2]
[341788967,1731231042607,-524.34,0.00030136,2]
[341788968,1731231042616,-500.0,0.00030136,2]
[341788969,1731231042626,-500.0,0.00030136,2]
[341788970,1731231042635,-500.0,0.00030136,2]
[341788971,1731231042644,-500.0,0.00030136,2]
[341788972,1731231042653,-500.0,0.00030136,2]
[341788973,1731231042662,-500.0,0.00030136,2]
[341788974,1731231042671,-500.0,0.00030136,2]
[341788975,1731231042680,-500.0,0.00030136,2]
[341788976,1731231042690,-500.0,0.00030136,2]
[341788977,1731231042699,-500.0,0.00030136,2]
[341788978,1731231042710,-325.76811748,0.00030136,2]
[341788979,1731231042719,-464.83068851,0.00030136,2]
[341788980,1731231042728,-500.0,0.00030136,2]
[341788981,1731231042738,-156.33315232,0.00030153,2]
[341788982,1731231042749,-151.0,0.00030171,7]
[341788984,1731231042758,-151.0,0.00030172,7]
[341788986,1731231042768,-151.0,0.00030172,7]
[341788987,1731231042776,-328.259738,0.00030172,7]
[341788988,1731231042785,-328.259738,0.00030172,7]
[341788989,1731231042794,-500.0,0.00030173,5]
[341788990,1731231042804,-502.5963108,0.00030173,5]
[341788991,1731231042813,-502.57678498,0.00030173,5]
[341788992,1731231042822,-503.44774057,0.00030173,5]
[341788993,1731231042831,-201.69309713,0.00030173,5]
[341788994,1731231042840,-245.19350941,0.00030173,5]
[341788995,1731231042849,-502.92068442,0.00030173,5]
[341788996,1731231042858,-500.0,0.00030173,5]
[341788997,1731231042924,-500.0,0.00030173,5]
[341788998,1731231042934,-500.0,0.00030173,5]
[341788999,1731231042943,-500.21512103,0.00030173,5]
[341789000,1731231042953,-161.97820059,0.00030173,5]
[341789001,1731231042963,-500.0,0.00030173,5]
[341789002,1731231042972,-500.0,0.00030173,5]
[341789003,1731231042981,-158.7812064,0.00030173,5]
[341789005,1731231042991,-500.0,0.00030173,2]
[341789006,1731231043000,-501.14350425,0.00030173,5]
[341789007,1731231043009,-500.0,0.00030173,5]
[341789008,1731231043018,-160.49775391,0.00030173,5]
[341789009,1731231043028,-150.73391277,0.00030173,5]
[341789010,1731231043037,-503.07686853,0.00030173,5]
[341789011,1731231043046,-160.58836082,0.00030173,5]
[341789012,1731231043056,-363.54342715,0.00030173,5]
[341789013,1731231043065,-500.0,0.00030173,5]
[341789014,1731231043074,-173.08212177,0.00030173,5]
[341789015,1731231043084,-501.48764017,0.00030173,5]
[341789017,1731231043093,-155.438035,0.00030173,7]
[341789019,1731231043102,-151.0,0.00030173,7]
[341789020,1731231043112,-188.771636,0.00030173,7]
[341789021,1731231043121,-188.771637,0.00030173,7]
[341789022,1731231043130,-337.746111,0.00030173,7]
[341789023,1731231043139,-151.0,0.00030173,7]
[341789024,1731231043148,-337.746109,0.00030173,7]
[341789025,1731231043158,-415.983393,0.00030173,7]
[341789026,1731231043167,-415.98339576,0.00030173,7]
[341789027,1731231043177,-160.0,0.00030179,4]
[341789028,1731231043186,-150.112233,0.000302,17]
[341789029,1731231043195,-150.112233,0.000302,13]
[341789030,1731231043205,-1189.35173535,0.00030207,2]
[341789032,1731231043217,-316.0,0.00030249,2]
[341789033,1731231043226,-151.0,0.00030299,7]
[341789035,1731231043235,-154.58866,0.00030299,7]
[341789037,1731231043244,-8222.195061,0.000303,2]
[341789039,1731231043253,-8222.19506097,0.000303,2]
[341789041,1731231043262,-8222.19506097,0.000303,2]
[341789043,1731231043271,-8222.19506097,0.000303,2]
[341789044,1731231043280,-151.0,0.000303,7]
[341789046,1731231043289,-641.072247,0.000303,7]
[341789047,1731231043299,-641.072247,0.000303,7]
[341789048,1731231043308,-151.0,0.000303,7]
[341789049,1731231043316,-151.0,0.000303,2]
[341789050,1731231043326,-151.0,0.000303,7]
[341789051,1731231043335,-151.0,0.000303,7]
[341789052,1731231043344,-151.0,0.000303,7]
[341789053,1731231043354,-169.708434,0.000303,7]
[341789054,1731231043363,-150.112233,0.000303,12]
[341789055,1731231043372,-150.112233,0.000303,17]
[341789056,1731231043381,-151.0,0.000303,7]
[341789057,1731231043390,-151.0,0.000303,7]
[341789058,1731231043399,-308.441896,0.000303,7]
[341789059,1731231043408,-151.0,0.000303,7]
[341789060,1731231043417,-151.0,0.000303,7]
[341789061,1731231043427,-151.0,0.000303,7]
[341789062,1731231043435,-263.774245,0.000303,3]
[341789063,1731231043444,-151.0,0.000303,7]
[341789064,1731231043453,-152.706119,0.000303,7]
[341789065,1731231043463,-151.0,0.000303,7]
[341789066,1731231043476,-151.0,0.000303,7]
[341789067,1731231043486,-179.956232,0.000303,7]
[341789069,1731231043495,-151.0,0.000303,7]
[341789070,1731231043504,-179.956232,0.000303,7]
[341789071,1731231043515,-284.024251,0.000303,7]
[341789072,1731231043524,-151.0,0.000303,7]
[341789073,1731231043533,-240.697236,0.000303,7]
[341789074,1731231043542,-240.697236,0.000303,7]
[341789075,1731231043552,-328.259738,0.000303,7]
[341789076,1731231043561,-328.259738,0.000303,7]
[341789077,1731231043570,-214.06406,0.000303,7]
[341789078,1731231043579,-214.064053,0.000303,7]
[341789079,1731231043588,-160.837067,0.00030374,2]
[341789080,1731231043597,-1189.35173535,0.00030377,2]
[341789081,1731231043606,-293.18244,0.000304,16]
[341789082,1731231043615,-200.95,0.000304,2]
[341789083,1731231043624,-150.112233,0.000304,16]
[341789084,1731231043633,-150.112233,0.000304,12]
[341789085,1731231043642,-151.0,0.00030409,7]
[341789086,1731231043651,-151.0,0.00030409,7]
[341789087,1731231043660,-151.0,0.00030409,7]
[341789088,1731231043669,-151.0,0.00030409,7]
[341789089,1731231043678,-202.55468338,0.00030409,2]
[341789090,1731231043687,-5951.59235107,0.00030409,2]
[341789091,1731231043696,-151.0,0.00030409,7]
[341789092,1731231043705,-240.697236,0.00030409,7]
[341789093,1731231043715,-240.697236,0.00030409,7]
[341789094,1731231043723,-328.259738,0.00030409,7]
[341789095,1731231043732,-328.259738,0.00030409,7]
[341789096,1731231043741,-291.635298,0.00030409,7]
[341789097,1731231043750,-291.635306,0.00030409,7]
[341789098,1731231043759,-151.0,0.00030409,7]
[341789099,1731231043768,-892.528584,0.00030409,7]
[341789100,1731231043777,-892.528582,0.00030409,7]
[341789101,1731231043786,-151.0,0.0003041,7]
[341789102,1731231043795,-151.0,0.0003041,7]
[341789103,1731231043804,-256.903096,0.0003041,7]
[341789104,1731231043813,-153.28147,0.0003041,7]
[341789105,1731231043822,-153.324941,0.0003041,7]
[341789106,1731231043831,-151.0,0.0003041,7]
[341789107,1731231043840,-151.0,0.0003041,7]
[341789108,1731231043849,-500.0,0.0003041,15]
[341789109,1731231043913,-641.072247,0.0003041,7]
[341789110,1731231043923,-641.072247,0.0003041,7]
[341789111,1731231043933,-641.072247,0.0003041,7]
[341789112,1731231043942,-641.072247,0.0003041,7]
[341789113,1731231043951,-151.0,0.0003041,7]
[341789114,1731231043961,-151.0,0.0003041,7]
[341789115,1731231043970,-151.0,0.0003041,2]
[341789116,1731231043979,-151.0,0.0003041,2]
[341789117,1731231043988,-151.0,0.0003041,7]
[341789118,1731231043998,-153.169852,0.0003041,7]
[341789119,1731231044007,-151.0,0.0003041,7]
[341789120,1731231044016,-151.0,0.0003041,7]
[341789121,1731231044026,-151.0,0.0003041,7]
[341789122,1731231044036,-151.0,0.0003041,7]
[341789123,1731231044045,-151.0,0.0003041,7]
[341789124,1731231044054,-151.0,0.0003041,7]
[341789125,1731231044063,-151.0,0.0003041,7]
[341789126,1731231044073,-151.0,0.0003041,7]
[341789127,1731231044082,-151.0,0.0003041,7]
[341789128,1731231044091,-151.0,0.0003041,7]
[341789129,1731231044100,-291.49998199,0.0003041,2]
[341789130,1731231044109,-151.0,0.0003041,7]
[341789131,1731231044118,-151.0,0.0003041,7]
[341789132,1731231044127,-512.01895388,0.0003041,2]
[341789133,1731231044137,-308.441896,0.0003041,7]
[341789134,1731231044146,-308.441896,0.0003041,7]
[341789135,1731231044156,-151.0,0.0003041,7]
[341789136,1731231044166,-151.0,0.0003041,7]
[341789137,1731231044175,-151.0,0.0003041,7]
[341789138,1731231044185,-500.0,0.0003041,2]
[341789139,1731231044195,-250.0,0.0003041,2]
[341789140,1731231044204,-500.0,0.0003041,2]
[341789141,1731231044214,-500.0,0.0003041,2]
[341789142,1731231044223,-584.96079147,0.0003041,2]
[341789143,1731231044232,-360.92037721,0.0003041,2]
[341789144,1731231044241,-502.90988778,0.0003041,2]
[341789145,1731231044250,-487.6,0.0003041,2]
[341789146,1731231044260,-151.0,0.0003041,7]
[341789147,1731231044269,-151.0,0.0003041,7]
[341789148,1731231044278,-151.0,0.0003041,7]
[341789149,1731231044287,-500.0,0.0003041,2]
[341789150,1731231044296,-151.0,0.0003041,7]
[341789151,1731231044306,-500.0,0.0003041,2]
[341789152,1731231044315,-151.0,0.0003041,7]
[341789153,1731231044325,-151.0,0.0003041,7]
[341789154,1731231044340,-405.11180106,0.0003041,2]
[341789155,1731231044357,-500.0,0.0003041,2]
[341789156,1731231044372,-500.0,0.0003041,2]
[341789157,1731231044390,-500.0,0.0003041,2]
[341789158,1731231044407,-500.0,0.0003041,2]
[341789159,1731231044423,-500.0,0.0003041,2]
[341789160,1731231044440,-501.02768452,0.0003041,2]
[341789161,1731231044454,-500.0,0.0003041,2]
[341789162,1731231044470,-151.0,0.0003041,7]
[341789163,1731231044489,-500.0,0.0003041,2]
[341789164,1731231044509,-151.0,0.0003041,7]
[341789165,1731231044526,-151.0,0.0003041,7]
[341789166,1731231044539,-500.0,0.0003041,2]
[341789167,1731231044557,-500.0,0.0003041,2]
[341789168,1731231044573,-500.0,0.0003041,2]
[341789169,1731231044589,-500.0,0.0003041,2]
[341789170,1731231044602,-512.74328888,0.0003041,2]
[341789171,1731231044617,-500.0,0.0003041,2]
[341789172,1731231044633,-500.0,0.0003041,2]
[341789173,1731231044648,-503.0,0.0003041,2]
[341789174,1731231044664,-151.0,0.0003041,7]
[341789175,1731231044679,-151.0,0.0003041,7]
[341789176,1731231044694,-151.0,0.0003041,7]
[341789177,1731231044710,-500.0,0.0003041,2]
[341789178,1731231044725,-500.0,0.0003041,2]
[341789179,1731231044740,-500.0,0.0003041,2]
[341789180,1731231044754,-503.63123892,0.0003041,2]
[341789181,1731231044768,-500.0,0.0003041,2]
[341789182,1731231044784,-923.17,0.0003041,120]
[341789183,1731231044797,-322.54305302,0.0003041,2]
[341789184,1731231044811,-500.0,0.0003041,2]
[341789185,1731231044826,-500.0,0.0003041,2]
[341789186,1731231044840,-500.0,0.0003041,2]
[341789187,1731231044854,-151.0,0.0003041,7]
[341789188,1731231044867,-151.0,0.0003041,7]
[341789189,1731231044881,-151.0,0.0003041,7]
[341789190,1731231044895,-500.0,0.0003041,2]
[341789191,1731231044909,-179.956232,0.0003041,7]
[341789192,1731231044923,-179.956232,0.0003041,7]
[341789193,1731231044935,-179.956232,0.0003041,7]
[341789194,1731231044945,-222.325247,0.0003041,7]
[341789195,1731231044955,-179.956232,0.0003041,7]
[341789196,1731231044969,-179.956232,0.0003041,7]
[341789197,1731231044981,-179.956232,0.0003041,7]
[341789198,1731231044991,-500.0,0.0003041,2]
[341789199,1731231045001,-500.0,0.0003041,2]
[341789200,1731231045011,-500.0,0.0003041,2]
[341789201,1731231045135,-500.0,0.0003041,2]
[341789202,1731231045154,-500.0,0.0003041,2]
[341789203,1731231045163,-500.0,0.0003041,2]
[341789204,1731231045172,-636.33437907,0.0003041,2]
[341789205,1731231045182,-370.60768278,0.0003041,2]
[341789206,1731231045191,-500.0,0.0003041,2]